[Event "Biel Main Tournament 2019"]
[Site "Biel"]
[Date "2019.07.31"]
[Round "9.7"]
[White "Lehmann, Daniel"]
[Black "Jud, Marc"]
[Result "1/2-1/2"]
[ECO "D97"]
[WhiteElo "1685"]
[BlackElo "1940"]
[Annotator "NA"]
[PlyCount "26"]
[EventDate "2019.07.20"]
[EventType "swiss"]
[EventCountry "SUI"]
[SourceTitle "playchess.com"]
[Source "ChessBase"]
[SourceQuality "1"]
[TimeControl "40/5400+30:1800+30"]

1. d4 {[%emt 0:00:00]} Nf6 {[%emt 0:00:00]} 2. c4 {[%emt 0:00:00]} g6 {[%emt 0:00:00]} 3. Nc3 {[%emt 0:00:03]} d5 {[%emt 0:00:10]} 4. Nf3 {[%emt 0:00:24]} Bg7 {[%emt 0:00:14]} 5. Qb3 {[%emt 0:00:20]} dxc4 {[%emt 0:01:15]} 6. Qxc4 {[%emt 0:00:14]} c6 {[%emt 0:00:19]} 7. e4 {[%emt 0:00:22]} O-O {[%emt 0:00:19]} 8. Be2 {[%emt 0:00:29]} h6 {[%emt 0:00:41]} 9. O-O {[%emt 0:00:42]} Be6 {[%emt 0:13:00]} 10. Qd3 {[%emt 0:00:27]} Na6 {[%emt 0:00:51]} 11. Bf4 {[%emt 0:04:49]} Qe8 {[%emt 0:11:41]} 12. Rfd1 {[%emt 0:06:24]} Kh7 {[%emt 0:04:39]} 13. h3 {[%emt 0:01:04]} Rd8 {[%emt 0:00:26]} 1/2-1/2

[Event "Biel Main Tournament 2019"]
[Site "Biel"]
[Date "2019.07.31"]
[Round "9.8"]
[White "Meyer, Prosper"]
[Black "Stadler, Rudolf"]
[Result "1-0"]
[ECO "A80"]
[WhiteElo "1916"]
[BlackElo "1842"]
[Annotator "NA"]
[PlyCount "27"]
[EventDate "2019.07.20"]
[EventType "swiss"]
[EventCountry "SUI"]
[SourceTitle "playchess.com"]
[Source "ChessBase"]
[SourceQuality "1"]
[TimeControl "40/5400+30:1800+30"]

1. d4 {[%emt 0:00:00]} f5 {[%emt 0:00:00]} 2. Nc3 {[%emt 0:00:00]} e6 {[%emt 0:00:00]} 3. e4 {[%emt 0:00:05]} fxe4 {[%emt 0:00:49]} 4. Nxe4 {[%emt 0:00:09]} Nf6 {[%emt 0:03:20]} 5. Bd3 {[%emt 0:00:19]} g6 {[%emt 0:02:39]} 6. Nxf6+ {[%emt 0:00:26]} Qxf6 {[%emt 0:00:11]} 7. Nf3 {[%emt 0:00:05]} Nc6 {[%emt 0:10:37]} 8. Bg5 {[%emt 0:00:19]} Qf7 {[%emt 0:01:23]} 9. c3 {[%emt 0:03:35]} Bg7 {[%emt 0:02:51]} 10. Qe2 {[%emt 0:01:19]} d5 {[%emt 0:08:30]} 11. b4 {[%emt 0:01:21]} O-O {[%emt 0:10:48]} 12. O-O {[%emt 0:00:21]} h6 {[%emt 0:26:34]} 13. Be3 {[%emt 0:11:19]} Re8 {[%emt 0:00:31]} 14. h4 {[%emt 0:02:42]} 1-0

[Event "Biel Main Tournament 2019"]
[Site "Biel"]
[Date "2019.07.31"]
[Round "9.9"]
[White "Jenny, Philipp"]
[Black "Lada, Ireneusz"]
[Result "0-1"]
[ECO "B16"]
[WhiteElo "1752"]
[BlackElo "1914"]
[Annotator "NA"]
[PlyCount "64"]
[EventDate "2019.07.20"]
[EventType "swiss"]
[EventCountry "SUI"]
[SourceTitle "playchess.com"]
[Source "ChessBase"]
[SourceQuality "1"]
[TimeControl "40/5400+30:1800+30"]

1. e4 {[%emt 0:00:00]} c6 {[%emt 0:00:00]} 2. Nc3 {[%emt 0:00:00]} d5 {[%emt 0:00:00]} 3. Nf3 {[%emt 0:00:00]} dxe4 {[%emt 0:00:43]} 4. Nxe4 {[%emt 0:00:00]} Nf6 {[%emt 0:00:31]} 5. Nxf6+ {[%emt 0:00:37]} gxf6 {[%emt 0:00:00]} 6. d4 {[%emt 0:00:52]} Bf5 {[%emt 0:00:00]} 7. Bd3 {[%emt 0:00:57]} Bg6 {[%emt 0:00:00]} 8. Bf4 {[%emt 0:02:08]} e6 {[%emt 0:00:04]} 9. O-O {[%emt 0:01:08]} Bd6 {[%emt 0:01:20]} 10. Bxd6 {[%emt 0:02:49]} Qxd6 {[%emt 0:00:34]} 11. Re1 {[%emt 0:01:15]} Nd7 {[%emt 0:00:47]} 12. c4 {[%emt 0:02:39]} Rd8 {[%emt 0:08:45]} 13. Bxg6 {[%emt 0:05:46]} hxg6 {[%emt 0:01:14]} 14. d5 {[%emt 0:03:04]} cxd5 {[%emt 0:01:27]} 15. cxd5 {[%emt 0:00:17]} e5 {[%emt 0:00:06]} 16. Qb3 {[%emt 0:00:50]} Kf8 {[%emt 0:05:58]} 17. Qxb7 {[%emt 0:04:19]} e4 {[%emt 0:00:35]} 18. Qc6 {[%emt 0:00:19]} Qf4 {[%emt 0:00:18]} 19. Nd4 {[%emt 0:03:52]} Qxh2+ {[%emt 0:01:11]} 20. Kf1 {[%emt 0:00:06]} Kg7 {[%emt 0:12:48]} 21. Qc7 {[%emt 0:22:57]} Nb6 {[%emt 0:00:34]} 22. Rac1 {[%emt 0:00:30]} Qh1+ {[%emt 0:00:01]} 23. Ke2 {[%emt 0:00:27]} Qh5+ {[%emt 0:00:02]} 24. Kf1 {[%emt 0:06:10]} Rd7 {[%emt 0:01:56]} 25. Qf4 {[%emt 0:06:32]} Nxd5 {[%emt 0:01:01]} 26. Qg3 {[%emt 0:01:44]} Nb4 {[%emt 0:02:28]} 27. Rxe4 {[%emt 0:02:11]} Rxd4 {[%emt 0:02:27]} 28. Rxd4 {[%emt 0:00:28]} Qh1+ {[%emt 0:00:02]} 29. Ke2 {[%emt 0:00:15]} Qxc1 {[%emt 0:00:05]} 30. Rxb4 {[%emt 0:01:17]} Re8+ {[%emt 0:00:08]} 31. Kf3 {[%emt 0:00:47]} Qd1+ {[%emt 0:00:24]} 32. Kf4 {[%emt 0:00:23]} Qd6+ {[%emt 0:00:04]} 0-1